bitfinex/quotes_ETHUSD_20250331
["timestamp","ask_amount","ask_price","bid_price","bid_amount"]
[1743429669745,6.52178354,1826.0,1825.9,7.84877314]
[1743429669946,0.050003,1826.9,1826.6,5.47452]
[1743429670261,0.050003,1826.9,1826.5,6.658]
[1743429670466,0.050003,1826.9,1826.6,5.47435]
[1743429670671,0.050003,1826.9,1826.8,5.47405]
[1743429671442,0.050003,1826.9,1826.7,7.00514]
[1743429671638,0.050003,1826.9,1826.8,6.57878542]
[1743429671850,0.050003,1826.9,1826.8,6.174564]
[1743429672137,0.050003,1826.9,1826.8,6.22928912]
[1743429672489,3e-06,1826.9,1826.8,8.38398912]
[1743429672673,3e-06,1826.9,1826.8,8.329264]
[1743429672971,3e-06,1826.9,1826.8,8.19306958]
[1743429673137,3e-06,1826.9,1826.8,14.84906958]
[1743429673867,3e-06,1826.9,1826.8,14.435264]
[1743429674553,3e-06,1826.9,1826.8,14.433264]
[1743429674722,3e-06,1826.9,1826.8,8.2587]
[1743429675051,3e-06,1826.9,1826.5,7.13245]
[1743429675350,5.47409,1826.8,1826.5,8.3118]
[1743429675576,5.47453,1826.7,1826.5,6.654]
[1743429675718,5.47498,1826.5,1826.2,1.5926]
[1743429676046,5.47465,1826.6,1826.2,5.47584]
[1743429676349,3.0,1826.7,1826.3,1.5926]
[1743429676669,5.47506,1826.5,1826.1,0.05474689]
[1743429676820,5.47536,1826.4,1826.0,7.86339731]
[1743429677026,5.47586,1826.2,1826.0,6.653]
[1743429677528,5.47591,1826.2,1826.0,6.653]
[1743429677921,3.0,1826.3,1826.0,6.653]
[1743429678121,5.47447,1826.7,1826.2,5.47571]
[1743429678318,10.94975,1826.6,1826.2,5.47571]
[1743429678525,5.47507,1826.5,1826.1,5.47598]
[1743429678763,5.47465,1826.6,1826.2,5.53058111]
[1743429678965,5.47465,1826.6,1826.2,5.53040111]
[1743429679165,1.565803,1826.9,1826.2,0.05475111]
[1743429679469,3e-06,1826.9,1826.8,5.47405]
[1743429679670,3e-06,1826.9,1826.7,10.94853]
[1743429679876,3e-06,1826.9,1826.8,7.06508714]
[1743429680166,3e-06,1826.9,1826.8,1.5363]
[1743429680369,3e-06,1826.9,1826.8,7.01035]
[1743429680539,3e-06,1826.9,1826.6,6.652]
[1743429680740,5.47406,1826.8,1826.6,6.652]
[1743429680941,5.47463,1826.7,1826.2,13.78212]
[1743429681136,3e-06,1826.9,1826.3,5.47532]
[1743429681137,5.47408,1826.8,1826.3,5.47532]
[1743429681345,5.47423,1826.8,1826.3,5.47553]
[1743429681567,5.473883,1826.9,1826.5,5.47484]
[1743429681768,5.47422,1826.8,1826.3,10.95094]
[1743429682068,3e-06,1826.9,1826.2,8.3064]
[1743429682291,3e-06,1826.9,1825.9,1.5764]
[1743429682292,3.80389524,1826.6,1825.9,1.5764]
[1743429682452,5.47518,1826.5,1825.9,1.5764]
[1743429682643,1.6292,1826.8,1826.1,5.47615]
[1743429682972,1.6292,1826.8,1826.2,12.12683]
[1743429683139,8.47449,1826.7,1825.9,1.5764]
[1743429683342,5.47539,1826.4,1826.0,5.47626]
[1743429683541,5.47539,1826.4,1825.9,7.05298]
[1743429683747,5.47464,1826.7,1826.0,0.05475506]
[1743429683975,4.6292,1826.8,1826.0,0.05475506]
[1743429684282,5.47435,1826.7,1826.0,5.47636]
[1743429684455,5.47539,1826.4,1826.0,11.00742299]
[1743429684644,5.47539,1826.4,1826.0,5.47631]
[1743429684843,5.47485,1826.6,1826.0,0.05475299]
[1743429685047,5.47472,1826.6,1826.2,5.4757]
[1743429685259,1.6292,1826.8,1826.3,0.05474759]
[1743429685483,3e-06,1826.9,1826.7,5.47416]
[1743429685657,3e-06,1826.9,1826.7,10.94837]
[1743429685853,3e-06,1826.9,1826.7,6.65]
[1743429686070,5.47405,1826.8,1826.7,6.65]
[1743429686274,5.473923,1826.9,1826.7,6.65]
[1743429686476,5.473853,1826.9,1826.7,6.65]
[1743429686676,5.47405,1826.8,1826.7,6.65]
[1743429686882,5.47405,1826.8,1826.2,12.12583]
[1743429686883,5.47477,1826.6,1826.2,12.12583]
[1743429687197,5.47445,1826.7,1826.3,5.53017903]
[1743429687398,3e-06,1826.9,1826.3,1.82034793]
[1743429687562,3e-06,1826.9,1826.6,5.47444]
[1743429687758,3e-06,1826.9,1826.7,12.12425]
[1743429687978,3e-06,1826.9,1826.7,6.65]
[1743429688401,3e-06,1826.9,1826.8,0.05473425]
[1743429688601,3e-06,1826.9,1826.8,5.52878425]
[1743429688808,3e-06,1826.9,1826.8,7.29406968]
[1743429688988,3e-06,1826.9,1826.8,8.93556968]
[1743429689359,3e-06,1827.0,1826.9,6.02375]
[1743429689598,0.05,1827.9,1827.6,5.47153]
[1743429689908,0.05,1827.9,1827.6,5.47155]
[1743429690201,0.05,1827.9,1827.7,0.05470956]
[1743429690509,0.05,1827.9,1827.8,6.99115]
[1743429690708,0.05,1827.9,1827.6,10.94324]
[1743429691010,0.05,1827.9,1827.6,5.47145]
[1743429691305,0.05,1827.9,1827.7,5.47117]
[1743429691611,0.05,1827.9,1827.8,5.52575394]
[1743429691782,0.05,1827.9,1827.8,5.52575101]
[1743429691962,0.05,1827.9,1827.8,5.47105]
[1743429692165,0.05,1827.9,1827.6,5.47156]
[1743429692376,0.05,1827.9,1827.7,5.47119]
[1743429692577,0.05,1827.9,1827.7,6.018309]
[1743429692824,0.05,1827.9,1827.8,5.47105]
[1743429693100,0.05,1827.9,1827.7,6.018309]
[1743429693258,0.05,1827.9,1827.6,5.47165]
[1743429693686,0.05,1827.9,1827.7,5.47135]
[1743429693912,0.05,1827.9,1827.8,0.0547025]
[1743429694619,5.52089,1827.9,1827.5,13.64085]
[1743429694918,5.52089,1827.9,1827.6,0.05470909]
[1743429695128,5.52089,1827.9,1827.5,13.64085]
[1743429695419,5.47107,1827.8,1827.6,0.0547091]
[1743429695583,5.47107,1827.8,1827.5,6.649]
[1743429695981,5.52078,1827.9,1827.5,12.12083]
[1743429696516,0.05,1827.9,1827.5,6.649]
[1743429696709,5.52079,1827.9,1827.5,12.12084]
[1743429697103,0.05,1827.9,1827.5,8.408308]
[1743429697416,0.05,1827.9,1827.6,5.47151]
[1743429697593,5.52089,1827.9,1827.5,12.12093]
[1743429697793,5.47111,1827.8,1827.5,6.649]
[1743429698116,5.47213,1827.5,1827.2,6.645]
[1743429698335,5.47156,1827.7,1827.3,5.47244]
[1743429698485,0.05,1827.9,1827.5,7.00442]
[1743429698685,5.47109,1827.8,1827.5,1.5326]
[1743429698916,0.05,1827.9,1827.4,0.547244]
[1743429699209,0.05,1827.9,1827.5,5.47194]
[1743429699411,0.05,1827.9,1827.4,10.94411]
[1743429699594,5.47106,1827.8,1827.4,5.47202]
[1743429699790,5.47151,1827.7,1827.3,7.04265]
[1743429699978,5.47151,1827.7,1827.4,0.05471397]
[1743429700184,0.05,1827.9,1827.4,0.05471397]
[1743429700185,5.52082,1827.9,1827.5,5.4718]
[1743429700494,5.52077,1827.9,1827.6,0.05470979]
[1743429700887,5.47108,1827.8,1827.4,6.1819194]
[1743429701081,5.47108,1827.8,1827.4,6.23662966]
[1743429701281,0.05,1827.9,1827.4,0.76442966]
[1743429701482,0.05,1827.9,1827.8,5.47105]
[1743429701694,0.05,1827.9,1827.8,14.79157885]
[1743429702013,0.05,1827.9,1827.8,14.73688]
[1743429702700,1e-05,1827.9,1827.8,15.28688]
[1743429702899,1.6199,1828.9,1828.6,5.46852]
[1743429703107,5.5033695,1829.7,1829.3,5.45654]
[1743429703302,5.46597,1829.5,1829.4,0.05465804]
[1743429703513,0.74505645,1829.7,1829.3,6.643]
[1743429703711,0.0377295,1829.7,1829.4,5.46599]
[1743429703916,0.0377295,1829.7,1829.6,5.46567]
[1743429704237,9.5e-06,1829.7,1829.6,7.11897]
[1743429704410,1e-05,1829.9,1829.8,5.46507]
[1743429705832,1e-05,1829.9,1829.8,12.12307]
[1743429706314,1e-05,1829.9,1829.4,1.5014]
[1743429706521,1e-05,1829.9,1829.6,5.46553]
[1743429706683,1e-05,1829.9,1829.5,6.679]
[1743429706885,5.46483,1829.9,1829.5,6.679]
[1743429707081,1e-05,1829.9,1829.5,6.679]
[1743429707433,1e-05,1829.9,1829.8,5.46507]
[1743429707587,1e-05,1829.9,1829.8,5.51970795]
[1743429707788,1e-05,1829.9,1829.8,5.46507]
[1743429708417,1e-05,1829.9,1829.8,13.74180349]
[1743429708588,1e-05,1829.9,1829.8,13.68717]
[1743429708915,1e-05,1829.9,1829.8,15.602424]
[1743429709103,1e-05,1829.9,1829.8,16.02092251]
[1743429709306,1e-05,1829.9,1829.8,3.424354]
[1743429709490,1e-05,1829.9,1829.8,8.2351]
[1743429709685,1e-05,1829.9,1829.8,1.5091]
[1743429709890,1e-05,1829.9,1829.8,13.70017]
[1743429711211,1e-05,1829.9,1829.8,6.726]
[1743429711412,1e-05,1829.9,1829.8,12.19107]
[1743429711717,1e-05,1829.9,1829.8,6.726]
[1743429712419,5.46495,1829.9,1829.5,5.46577]
[1743429712719,6.011705,1829.8,1829.4,5.4661]
[1743429712924,5.46521,1829.8,1829.4,5.4661]
[1743429713118,1.54051,1829.9,1829.2,13.74574]
[1743429713319,5.46562,1829.7,1829.2,12.19284]
[1743429713523,5.46606,1829.5,1829.2,6.726]
[1743429713823,5.4657,1829.6,1829.2,6.726]
[1743429713992,5.4657,1829.6,1829.2,12.19276]
[1743429713993,5.46598,1829.5,1829.2,12.19276]
[1743429714193,5.46598,1829.5,1829.2,6.726]
[1743429714389,5.46638,1829.4,1829.2,6.726]
[1743429714618,5.46598,1829.5,1829.2,6.726]
[1743429714820,5.46569,1829.6,1829.2,7.3986]
[1743429715007,5.46629,1829.4,1829.2,6.726]
[1743429715410,10.9328,1829.4,1829.2,6.726]
[1743429715710,10.93232,1829.5,1829.2,6.726]
[1743429716015,4.54051,1829.9,1829.2,6.726]
[1743429716016,5.46657,1829.3,1829.2,6.726]
[1743429716218,5.46646,1829.4,1829.2,6.726]
[1743429716219,5.4664,1829.4,1829.2,6.726]
[1743429716407,10.93215,1829.5,1829.2,6.726]
[1743429716609,5.4665,1829.4,1829.2,6.726]
[1743429716795,5.466,1829.5,1829.2,6.726]
[1743429716796,10.9321,1829.5,1829.2,6.726]
[1743429717003,5.46631,1829.4,1829.2,6.726]
[1743429717189,5.466,1829.5,1829.2,6.726]
[1743429717393,5.46631,1829.4,1829.2,6.726]
[1743429717620,5.46599,1829.5,1829.2,6.726]
[1743429717825,10.93308,1829.4,1829.2,6.726]
[1743429718131,5.46772,1829.0,1828.8,1.5121]
[1743429718315,5.46772,1829.0,1828.6,12.16951]
[1743429718624,5.4669,1829.2,1828.5,6.699]
[1743429718796,1.614,1828.8,1828.5,12.16778]
[1743429718992,5.46776,1828.9,1828.5,12.16778]
[1743429719193,5.46776,1828.9,1828.6,0.05468131]
[1743429719392,5.46776,1828.9,1828.6,5.52334131]
[1743429719694,5.46818,1828.8,1828.5,6.699]
[1743429719902,5.46883,1828.6,1828.1,6.692]
[1743429720128,5.46929,1828.4,1828.1,6.692]
[1743429720335,1.6666,1828.5,1827.8,6.56515]
[1743429720539,5.46997,1828.2,1827.8,12.03608]
[1743429720706,1.6666,1828.5,1827.9,5.4705]
[1743429720893,1.6666,1828.5,1828.0,5.47045]
[1743429720894,5.4694,1828.4,1828.0,5.47045]
[1743429721090,12.60478,1828.5,1828.1,5.47001]
[1743429721312,12.60475,1828.5,1828.1,5.47001]
[1743429721625,5.46809,1828.8,1828.2,6.681]
[1743429721924,5.46785,1828.9,1828.5,5.46893]
[1743429722121,5.46779,1828.9,1828.5,5.46882]
[1743429722499,1.6448,1829.1,1828.3,10.93899]
[1743429722700,5.46746,1829.0,1828.2,6.677]
[1743429722901,5.46892,1828.6,1828.2,12.14674]
[1743429723112,0.546746,1828.9,1828.2,6.677]
[1743429723314,5.46885,1828.6,1828.2,12.14684]
[1743429723611,5.46848,1828.7,1828.3,12.17233]
[1743429723818,10.93783,1828.6,1828.3,6.703]
[1743429724015,5.46787,1828.9,1828.4,5.46896]
[1743429724222,5.46828,1828.8,1828.4,0.05468164]
[1743429724394,5.46865,1828.7,1828.2,5.46985]
[1743429724600,5.46865,1828.7,1828.3,5.46932]
[1743429724806,5.46746,1829.0,1828.4,0.05468585]
[1743429725027,5.46866,1828.6,1828.2,12.18575]
[1743429725210,5.46852,1828.7,1828.3,5.46947]
[1743429725429,6.014736,1828.9,1828.2,6.716]
[1743429725618,1.5741,1828.6,1827.9,5.47065]
[1743429725930,5.46912,1828.5,1828.0,0.05469342]
[1743429726103,1.5741,1828.6,1828.3,5.46937]
[1743429726308,5.46921,1828.5,1828.0,12.17443]
[1743429726627,10.93821,1828.5,1828.1,5.47005]
[1743429726817,1.5741,1828.6,1828.2,5.46963]
[1743429727000,1.5741,1828.6,1828.3,5.52423945]
[1743429727199,5.46808,1828.8,1828.3,0.05468945]
[1743429727399,5.46808,1828.8,1828.3,5.46956]
[1743429727400,8.46808,1828.8,1828.3,5.46956]
[1743429727599,5.46838,1828.7,1828.4,5.52392556]
[1743429727799,3.0,1828.8,1828.4,0.05468556]
[1743429728027,5.46893,1828.6,1828.2,5.46983]
[1743429728228,5.46947,1828.4,1827.9,19.19759]
[1743429728528,1.5283,1828.5,1828.0,0.05469637]
[1743429728729,7.01467,1828.7,1828.2,5.46957]
[1743429729032,7.01467,1828.7,1828.0,0.88579601]
[1743429729033,5.46765,1829.0,1828.5,5.46875]
[1743429729331,6.97497277,1829.8,1828.7,1.5895]
[1743429729332,5.46616,1829.5,1828.7,1.5895]
[1743429729628,5.46637,1829.4,1829.0,5.46734]
[1743429729830,1.5831,1829.7,1829.1,0.05467119]
[1743429729998,3.0,1829.5,1828.8,6.759]
[1743429730194,5.46763,1829.0,1828.8,6.759]
[1743429730608,1.5792,1829.3,1828.9,5.4675]
[1743429730809,5.46611,1829.5,1829.0,5.5219234]
[1743429731009,5.46641,1829.4,1829.0,5.46725]
[1743429731205,5.4666,1829.3,1828.9,5.52242732]
[1743429731420,5.4666,1829.3,1828.9,7.29721405]
[1743429731653,4.5672,1829.7,1829.0,5.46746]
[1743429731819,1.5672,1829.7,1829.1,5.52153297]
[1743429732138,5.4657,1829.6,1829.2,0.05466283]
[1743429732301,5.4657,1829.6,1829.1,0.05466283]
[1743429732503,5.466,1829.5,1829.0,1.5775]
[1743429732728,5.46653,1829.4,1829.0,5.46743]
[1743429732928,5.46603,1829.5,1829.0,5.46736]
[1743429733126,5.4661,1829.5,1829.0,5.4673]
[1743429733327,1.5672,1829.7,1828.9,5.46773]
[1743429733633,6.97127,1829.2,1828.8,12.22205]
[1743429733814,6.97127,1829.2,1828.8,5.46806]
[1743429734030,1.5044,1829.2,1828.8,5.46806]
[1743429734241,12.43851,1829.2,1828.8,5.46806]
[1743429734553,5.46763,1829.0,1828.7,6.746]
[1743429734759,5.46754,1829.0,1828.7,6.746]
[1743429735213,10.93521,1829.0,1828.7,6.746]
[1743429735413,5.46788,1828.9,1828.7,6.746]
[1743429735909,6.9713,1829.2,1828.8,5.46796]
[1743429736110,1.5044,1829.2,1828.9,5.46765]
[1743429736309,10.93339,1829.3,1828.9,5.46765]
[1743429736530,5.467,1829.2,1828.8,5.46788]
[1743429736715,1.6582,1829.4,1829.0,5.46735]
[1743429736924,5.4667,1829.3,1828.9,12.18156]
[1743429737240,1.6582,1829.4,1828.7,0.6746]
[1743429737445,5.46751,1829.0,1828.7,6.711]
[1743429737737,5.4678,1828.9,1828.6,6.712]
[1743429738046,5.46748,1829.0,1828.6,12.18064]
[1743429738233,5.4672,1829.1,1828.6,6.712]
[1743429738422,5.46756,1829.0,1828.6,12.18053]
[1743429738612,5.46756,1829.0,1828.6,6.712]
[1743429738846,5.46756,1829.0,1828.6,12.18052]
[1743429739047,5.46756,1829.0,1828.7,5.46836]
[1743429739217,1.6582,1829.4,1828.8,6.97766]
[1743429739426,5.46698,1829.2,1828.8,7.03233331]
[1743429739643,5.4666,1829.3,1828.9,5.46757]
[1743429739840,12.00510688,1829.9,1828.9,5.46757]
[1743429739841,1e-05,1829.9,1829.2,5.46687]
[1743429740026,1e-05,1829.9,1829.1,1.5521]
[1743429740027,5.46519,1829.8,1829.3,6.777]
[1743429740236,1.53291,1829.9,1829.0,7.323757]
[1743429740438,1.5329,1829.5,1828.8,12.24506]
[1743429740635,5.46684,1829.3,1828.9,5.46775]
[1743429740934,5.46702,1829.2,1828.8,12.24506]
[1743429741221,5.46661,1829.3,1828.8,5.46799]
[1743429741422,5.4669,1829.2,1828.8,12.24099]
[1743429741853,5.46568,1829.6,1829.1,5.46701]
[1743429741854,5.46587,1829.6,1829.1,5.46701]
[1743429742021,11.5951,1829.8,1829.1,5.46701]
[1743429742022,5.46609,1829.5,1829.1,5.46701]
[1743429742224,5.46609,1829.5,1829.1,10.93401]
[1743429742574,1.6271,1829.4,1829.0,5.52202819]
[1743429742850,7.0934,1829.4,1829.0,10.98932819]
[1743429743438,7.0934,1829.4,1829.0,10.98931819]
[1743429743638,7.0934,1829.4,1829.0,10.98933819]
[1743429743839,7.0934,1829.4,1829.0,6.75]
[1743429743840,5.46672,1829.3,1829.0,6.75]
[1743429744055,1.5373,1829.2,1828.5,5.46876]
[1743429744360,5.46762,1829.0,1828.6,10.93706]
[1743429744546,5.46757,1829.0,1828.6,5.46848]
[1743429745056,1.5373,1829.2,1828.5,5.46886]
[1743429745057,10.93456,1829.1,1828.7,5.46814]
[1743429745229,7.00439,1829.2,1828.8,5.46789]
[1743429745420,1.5373,1829.2,1828.8,0.05467717]
[1743429745621,5.46655,1829.4,1829.0,5.46721]
[1743429745821,12.20538,1829.7,1829.1,1.5892]
[1743429745822,5.46557,1829.7,1829.1,1.5892]
[1743429746152,5.46557,1829.7,1828.7,6.015034]
[1743429746153,3.0,1829.6,1828.9,5.46766]
[1743429746355,5.46668,1829.3,1828.9,10.93524]
[1743429746554,5.46668,1829.3,1828.9,5.46758]
[1743429746958,5.4672,1829.1,1828.8,12.21402]
[1743429747161,5.46689,1829.2,1828.9,5.46775]
[1743429747337,5.46631,1829.4,1829.0,5.46722]
[1743429747530,0.3,1829.5,1829.2,5.46667]
[1743429747726,5.4657,1829.6,1829.2,5.46687]
[1743429747926,5.4657,1829.6,1829.2,10.93356]
[1743429748359,5.4657,1829.6,1829.3,5.46655]
[1743429748655,5.46621,1829.5,1829.1,6.013852]
[1743429748850,5.46628,1829.4,1829.0,5.46742]
[1743429749032,5.46658,1829.3,1829.0,5.52208788]
[1743429749231,5.46628,1829.4,1829.0,5.52208788]
[1743429749427,5.46628,1829.4,1829.0,10.98936788]
[1743429749664,10.93275,1829.4,1829.0,5.52194788]
[1743429749864,5.46628,1829.4,1828.7,2.136014]
[1743429750109,1.6504,1829.7,1829.2,5.4667]
[1743429750361,1.6504,1829.7,1829.0,0.05466417]
[1743429750530,1.6504,1829.7,1829.4,5.46616]
[1743429750730,1e-05,1829.9,1829.5,0.05466131]
[1743429750943,5.46493,1829.9,1829.5,5.46583]
[1743429751241,5.46523,1829.8,1829.4,7.09482]
[1743429751440,5.4648,1829.9,1829.5,5.46577]
[1743429751658,5.4648,1829.9,1829.4,14.488277]
[1743429751867,5.46517,1829.8,1829.4,14.488187]
[1743429752161,5.46482,1829.9,1829.6,5.46567]
[1743429752547,1e-05,1829.9,1829.7,5.46533]
[1743429752749,1e-05,1829.9,1829.6,5.52028502]
[1743429752952,5.46517,1829.8,1829.4,9.022167]
[1743429753138,5.46517,1829.8,1829.4,14.488397]
[1743429753462,10.92995,1829.9,1829.5,5.46584]
[1743429753663,10.92995,1829.9,1829.1,0.41554364]
[1743429753664,5.46537,1829.7,1829.1,12.15412]
[1743429753962,5.46667,1829.3,1828.9,5.46752]
[1743429754133,5.46615,1829.5,1829.1,5.46713]
[1743429754555,1.6038,1829.8,1829.0,5.52212784]
[1743429754765,5.46653,1829.4,1829.0,5.46746]
[1743429754969,5.46657,1829.3,1829.0,5.46746]
[1743429755156,10.93298,1829.4,1829.0,13.28764995]
[1743429755459,5.46669,1829.3,1829.0,12.13932]
[1743429755664,5.4678,1828.9,1828.5,7.05363]
[1743429755844,5.4678,1828.9,1828.2,5.46969]
[1743429755845,5.46827,1828.8,1828.1,1.5848]
[1743429756038,7.06471,1829.1,1828.1,1.5848]
[1743429756039,5.4685,1828.7,1828.3,5.46954]
[1743429756246,5.4685,1828.7,1828.4,0.546954]
[1743429756537,5.46843,1828.7,1828.4,0.546954]
[1743429756737,5.46843,1828.7,1828.1,1.99454427]
[1743429756738,5.46908,1828.5,1828.1,7.05485]
[1743429756955,5.46868,1828.6,1828.3,5.46951]
[1743429757134,5.46793,1828.9,1828.5,5.46868]
[1743429757335,5.468,1828.9,1828.5,5.46894]
[1743429757662,5.46868,1828.6,1828.3,5.46951]
[1743429757978,5.46816,1828.8,1828.4,5.46903]
[1743429758281,5.46759,1829.0,1828.6,5.46852]
[1743429758431,5.46659,1829.3,1828.8,5.46785]
[1743429758432,3.0,1829.2,1828.8,5.46785]
[1743429758750,5.46675,1829.3,1828.9,5.46776]
[1743429758932,5.46698,1829.2,1828.9,5.46776]
[1743429759134,5.46675,1829.3,1828.9,10.93536]
[1743429759430,5.46675,1829.3,1828.9,10.93521]
[1743429759635,5.467,1829.2,1828.8,12.12104]
[1743429759857,7.02774,1829.5,1828.8,6.653]
[1743429759858,1.5617,1829.5,1828.8,6.653]
[1743429760033,5.46553,1829.7,1829.3,10.93287]
[1743429760234,7.04212,1829.8,1829.5,5.46586]
[1743429760478,5.46481,1829.9,1829.5,10.93168]
[1743429760773,5.41541,1829.7,1829.4,6.661]
[1743429760947,5.46572,1829.6,1829.4,6.71565714]
[1743429761131,5.46572,1829.6,1829.4,6.661]
[1743429761329,5.41541,1829.7,1829.4,6.661]
[1743429761542,10.88097,1829.7,1829.4,6.661]
[1743429761769,5.46591,1829.6,1829.4,6.661]
[1743429761975,10.93177,1829.6,1829.3,1.6515]
[1743429762131,5.4667,1829.3,1829.2,6.644]
[1743429762331,5.467,1829.2,1828.8,12.11104]
[1743429762562,5.46567,1829.6,1828.8,12.1108]
[1743429762764,5.46672,1829.3,1828.6,5.46853]
[1743429762966,3.0,1829.4,1828.9,5.46766]
[1743429763182,8.46639,1829.4,1829.0,5.46719]
[1743429763482,8.46627,1829.4,1828.9,1.5741]
[1743429763635,5.46496,1829.9,1829.0,6.644]
[1743429763972,1e-05,1829.9,1829.5,5.46595]
[1743429764263,1e-05,1829.9,1829.3,1.5741]
[1743429764264,5.46508,1829.8,1829.6,6.711]
[1743429764465,5.46504,1829.9,1829.6,6.711]
[1743429764663,1e-05,1829.9,1829.6,6.711]
[1743429764871,1e-05,1829.9,1829.6,12.17667]
[1743429765043,1e-05,1829.9,1829.7,0.05465409]
[1743429765248,1e-05,1829.9,1829.6,13.940906]
[1743429765441,1e-05,1829.9,1829.7,5.46535]
[1743429765639,1e-05,1829.9,1829.6,12.17664]
[1743429766040,1e-05,1829.9,1829.6,12.1765]
[1743429766773,1e-05,1829.9,1829.8,5.46507]
[1743429767272,1e-05,1829.9,1829.7,5.46531]
[1743429767644,1e-05,1829.9,1829.8,7.02747]
[1743429767855,1e-05,1829.9,1829.8,7.08210887]
[1743429768577,1e-05,1829.9,1829.8,7.0821017]
[1743429768746,1e-05,1829.9,1829.8,8.74887345]
[1743429769072,1e-05,1829.9,1829.8,8.69424175]
[1743429769249,1e-05,1829.9,1829.8,8.74887495]
[1743429769656,5.51183,1830.9,1830.5,5.46298]
[1743429769983,5.51193,1830.9,1830.5,5.46284]
[1743429770224,0.05,1830.9,1830.6,12.15263]
[1743429770904,0.05,1830.9,1830.7,5.46222]
[1743429771192,0.05,1830.9,1830.8,7.10430444]
[1743429771351,0.005,1831.2,1830.9,5.46179]
[1743429771548,5.46605,1831.2,1830.8,1.5876]
[1743429771849,5.46135,1831.1,1830.8,6.729]
[1743429772050,5.46136,1831.1,1830.8,6.729]
[1743429772266,5.46605,1831.2,1830.8,12.19082]
[1743429772267,0.005,1831.2,1830.8,12.19082]
[1743429772467,0.005,1831.2,1830.9,5.51619407]
[1743429772671,0.005,1831.2,1831.0,10.92253]
[1743429772872,0.005,1831.2,1831.0,12.20826]
[1743429773083,0.005,1831.2,1831.0,17.66955]
[1743429773303,0.005,1831.2,1831.1,5.51579898]
[1743429773598,0.005,1831.2,1831.1,0.05460255]
[1743429773814,5.4616,1831.0,1830.6,1.5647]
[1743429774092,0.005,1831.2,1830.8,5.46192]
[1743429774270,0.005,1831.2,1830.9,0.05461677]
[1743429774464,5.46605,1831.2,1830.7,12.20837]
[1743429774669,5.46605,1831.2,1830.8,6.744]
[1743429774670,5.46146,1831.1,1830.8,6.744]
[1743429775062,5.46152,1831.0,1830.8,6.744]
[1743429775388,5.46138,1831.1,1830.7,0.05461686]
[1743429775592,5.46138,1831.1,1830.4,7.07527]
[1743429775593,5.46209,1830.8,1830.4,7.07527]
[1743429775768,5.46282,1830.6,1830.3,6.729]
[1743429776107,1.5228,1831.1,1830.3,6.78362912]
[1743429776257,1.5228,1831.1,1830.3,6.74]
[1743429776258,5.46342,1830.4,1830.3,6.74]
[1743429776457,5.4627,1830.6,1830.3,6.74]
[1743429776692,5.46239,1830.7,1829.8,1.25474117]
[1743429776884,5.46429,1830.1,1829.7,8.3541]
[1743429777080,5.46492,1829.9,1829.7,8.3541]
[1743429777284,5.46492,1829.9,1829.5,5.46593]
[1743429777585,6.008969,1830.6,1830.1,5.46418]
[1743429777761,6.008969,1830.6,1830.1,6.773]
[1743429777762,5.46319,1830.5,1830.1,6.773]
[1743429777961,5.46319,1830.5,1830.1,12.291796]
[1743429778161,5.46319,1830.5,1830.1,12.23716]
[1743429778388,5.46319,1830.5,1830.1,5.46406]
[1743429778587,10.92639,1830.5,1830.1,12.30269593]
[1743429778804,5.46319,1830.5,1830.1,12.24806]
[1743429778970,5.46319,1830.5,1830.1,6.784]
[1743429779171,5.46388,1830.2,1829.8,6.776]
[1743429779479,5.46418,1830.1,1829.8,6.83064378]
[1743429779793,1.5312,1830.3,1829.8,0.05464378]
[1743429779998,5.46523,1829.8,1829.5,1.5484]
[1743429780291,5.46532,1829.8,1829.4,0.05465146]
[1743429780511,5.46478,1829.9,1829.4,7.37076122]
[1743429780810,1.6597,1830.7,1830.0,5.46444]
[1743429780965,1.6597,1830.7,1829.9,6.788]
[1743429781166,1.6597,1830.7,1830.0,0.05464284]
[1743429781368,5.46231,1830.8,1830.3,5.46344]
[1743429781714,5.46341,1830.4,1830.1,1.6195]
[1743429781871,5.4637,1830.3,1830.1,1.6195]
[1743429782067,5.46286,1830.6,1830.1,0.05463571]
[1743429782298,5.46169,1831.0,1830.6,5.46268]
[1743429782466,0.005,1831.2,1830.5,1.5895]
[1743429782467,5.46225,1830.8,1830.5,1.5895]
[1743429782784,5.4624,1830.7,1830.4,6.842]
[1743429782990,5.46192,1830.9,1830.4,5.51780589]
[1743429783190,1.092364,1830.9,1830.4,0.05462589]
[1743429783402,5.46166,1831.0,1830.4,5.46323]
[1743429783695,5.46209,1830.8,1830.4,5.46325]
[1743429783909,5.46246,1830.7,1830.3,0.05462109]
[1743429784084,5.4621,1830.8,1830.3,10.98153109]
[1743429784284,5.4621,1830.8,1830.4,5.46328]
[1743429784485,5.4615,1831.0,1830.5,5.51753644]
[1743429784687,5.46188,1830.9,1830.4,6.56138711]
[1743429784997,1.5663,1831.1,1830.2,1.5446]
[1743429785173,5.46179,1830.9,1829.9,6.836]
[1743429785374,5.46304,1830.5,1830.0,5.46425]
[1743429785687,6.9778,1830.7,1829.9,12.30074]
[1743429785992,5.46269,1830.6,1830.1,5.46417]
[1743429786198,1.5154,1830.7,1830.2,5.51850222]
[1743429786395,6.97794,1830.7,1830.2,5.51850222]